[Event "Titled Tuesday Blitz June 21 Late 2022"]
[White "Ladan, Nicholas"]
[Black "Deac, Bogdan-Daniel"]
[WhiteFideId "30918855"]
[BlackFideId "1226380"]
[WhiteElo "2167"]
[BlackElo "2648"]
[Result "0-1"]
[Round "01"]
[TimeControl "180+1"]
[Date "2022.06.21"]
[WhiteClock "0:00:35"]
[BlackClock "0:00:26"]

1. d4 {[%clk 0:03:00]}  Nf6 {[%clk 0:02:59]} 2. c4 {[%clk 0:03:00]}  g6 {[%clk 0:02:59]} 3. Nf3 {[%clk 0:03:00]}  Bg7 {[%clk 0:02:57]} 4. g3 {[%clk 0:03:00]}  c5 {[%clk 0:02:55]} 5. d5 {[%clk 0:02:56]}  e6 {[%clk 0:02:53]} 6. Bg2 {[%clk 0:02:56]}  exd5 {[%clk 0:02:54]} 7. cxd5 {[%clk 0:02:57]}  d6 {[%clk 0:02:50]} 8. Nc3 {[%clk 0:02:57]}  O-O {[%clk 0:02:50]} 9. O-O {[%clk 0:02:56]}  Re8 {[%clk 0:02:50]} 10. Re1 {[%clk 0:02:54]}  a6 {[%clk 0:02:46]} 11. a4 {[%clk 0:02:50]}  Nbd7 {[%clk 0:02:46]} 12. Bf4 {[%clk 0:02:49]}  Nh5 {[%clk 0:02:36]} 13. Bxd6 {[%clk 0:02:44]}  Qb6 {[%clk 0:02:35]} 14. Bf4 {[%clk 0:02:30]}  Nxf4 {[%clk 0:02:25]} 15. gxf4 {[%clk 0:02:28]}  Qxb2 {[%clk 0:02:24]} 16. Na2 {[%clk 0:01:35]}  Qxa1 {[%clk 0:02:21]} 17. Qxa1 {[%clk 0:01:36]}  Bxa1 {[%clk 0:02:21]} 18. Rxa1 {[%clk 0:01:37]}  Rxe2 {[%clk 0:02:21]} 19. Nc3 {[%clk 0:01:36]}  Re8 {[%clk 0:02:18]} 20. d6 {[%clk 0:01:33]}  Nf6 {[%clk 0:01:49]} 21. Ne5 {[%clk 0:01:32]}  Rd8 {[%clk 0:01:47]} 22. Rd1 {[%clk 0:01:25]}  Rb8 {[%clk 0:01:41]} 23. a5 {[%clk 0:01:23]}  b5 {[%clk 0:01:17]} 24. Nc6 {[%clk 0:01:21]}  Bg4 {[%clk 0:01:10]} 25. Rd2 {[%clk 0:01:13]}  b4 {[%clk 0:01:06]} 26. Na4 {[%clk 0:01:02]}  c4 {[%clk 0:00:44]} 27. Nb6 {[%clk 0:01:02]}  c3 {[%clk 0:00:31]} 28. Rc2 {[%clk 0:00:42]}  Rxd6 {[%clk 0:00:26]} 29. Nxb8 {[%clk 0:00:37]}  Rd1+ {[%clk 0:00:26]} 30. Bf1 {[%clk 0:00:38]}  Bh3 {[%clk 0:00:26]} 31. Rc1 {[%clk 0:00:35]}  Rxc1 {[%clk 0:00:26]} 0-1


[Site "https://www.chess.com"]

[Event "Titled Tuesday Blitz June 21 Late 2022"]
[White "Levine, Joseph"]
[Black "Muradov, Soltan"]
[WhiteFideId "30940346"]
[BlackFideId "14002108"]
[WhiteElo "1802"]
[BlackElo "1854"]
[Result "1-0"]
[Round "01"]
[TimeControl "180+1"]
[Date "2022.06.22"]
[WhiteClock "0:00:02"]
[BlackClock "0:00:30"]

1. e4 {[%clk 0:03:00]}  c5 {[%clk 0:02:58]} 2. Nf3 {[%clk 0:03:00]}  Nc6 {[%clk 0:02:59]} 3. d4 {[%clk 0:03:00]}  cxd4 {[%clk 0:03:00]} 4. Nxd4 {[%clk 0:03:01]}  Qb6 {[%clk 0:03:00]} 5. Nb3 {[%clk 0:02:59]}  Nf6 {[%clk 0:03:00]} 6. Be3 {[%clk 0:02:59]}  Qc7 {[%clk 0:02:59]} 7. Nc3 {[%clk 0:02:58]}  e6 {[%clk 0:03:00]} 8. Be2 {[%clk 0:02:58]}  Bb4 {[%clk 0:02:59]} 9. f3 {[%clk 0:02:48]}  d5 {[%clk 0:03:00]} 10. O-O {[%clk 0:02:17]}  O-O {[%clk 0:02:59]} 11. exd5 {[%clk 0:02:14]}  Bxc3 {[%clk 0:02:56]} 12. dxc6 {[%clk 0:02:10]}  Bxb2 {[%clk 0:02:57]} 13. Rb1 {[%clk 0:02:10]}  Ba3 {[%clk 0:02:57]} 14. cxb7 {[%clk 0:01:59]}  Bxb7 {[%clk 0:02:57]} 15. c4 {[%clk 0:01:58]}  Rfd8 {[%clk 0:02:55]} 16. Qe1 {[%clk 0:01:56]}  a5 {[%clk 0:02:52]} 17. Qf2 {[%clk 0:01:53]}  Qe7 {[%clk 0:02:45]} 18. Nc5 {[%clk 0:01:44]}  Bc6 {[%clk 0:02:40]} 19. Rb6 {[%clk 0:01:41]}  Rac8 {[%clk 0:02:37]} 20. Rfb1 {[%clk 0:01:35]}  h6 {[%clk 0:02:35]} 21. Nd3 {[%clk 0:01:24]}  Ba8 {[%clk 0:02:18]} 22. Ne5 {[%clk 0:01:16]}  Bc5 {[%clk 0:02:06]} 23. Bxc5 {[%clk 0:01:08]}  Rxc5 {[%clk 0:02:07]} 24. R6b5 {[%clk 0:01:01]}  Rcc8 {[%clk 0:01:59]} 25. Rxa5 {[%clk 0:00:56]}  Qc7 {[%clk 0:01:52]} 26. Rab5 {[%clk 0:00:51]}  Ne8 {[%clk 0:01:44]} 27. f4 {[%clk 0:00:36]}  Nd6 {[%clk 0:01:44]} 28. R5b3 {[%clk 0:00:34]}  Ne4 {[%clk 0:01:39]} 29. Qb6 {[%clk 0:00:25]}  Qe7 {[%clk 0:01:26]} 30. Re3 {[%clk 0:00:15]}  Nd2 {[%clk 0:00:37]} 31. Rd1 {[%clk 0:00:13]}  Qh4 {[%clk 0:00:37]} 32. g3 {[%clk 0:00:07]}  Qh3 {[%clk 0:00:38]} 33. Bf1 {[%clk 0:00:06]}  Nxf1 {[%clk 0:00:35]} 34. Rxd8+ {[%clk 0:00:04]}  Kh7 {[%clk 0:00:32]} 35. Qb1+ {[%clk 0:00:02]}  g6 {[%clk 0:00:30]} 36. Qxf1 {[%clk 0:00:02]} 1-0


[Site "https://www.chess.com"]

[Event "Titled Tuesday Blitz June 21 Late 2022"]
[White "Luo, Terry"]
[Black "Grischuk, Alexander"]
[WhiteFideId "30931045"]
[BlackFideId "4126025"]
[WhiteElo "2024"]
[BlackElo "2762"]
[Result "0-1"]
[Round "01"]
[TimeControl "180+1"]
[Date "2022.06.21"]
[WhiteClock "0:00:52"]
[BlackClock "0:00:06"]

1. d4 {[%clk 0:03:00]}  Nf6 {[%clk 0:02:59]} 2. c4 {[%clk 0:02:59]}  e6 {[%clk 0:02:59]} 3. g3 {[%clk 0:03:00]}  d5 {[%clk 0:02:58]} 4. Bg2 {[%clk 0:03:00]}  dxc4 {[%clk 0:02:59]} 5. Nf3 {[%clk 0:03:00]}  a6 {[%clk 0:02:59]} 6. O-O {[%clk 0:02:58]}  Nc6 {[%clk 0:02:59]} 7. e3 {[%clk 0:02:57]}  Rb8 {[%clk 0:02:58]} 8. Nfd2 {[%clk 0:02:55]}  e5 {[%clk 0:02:58]} 9. Bxc6+ {[%clk 0:02:55]}  bxc6 {[%clk 0:02:59]} 10. dxe5 {[%clk 0:02:56]}  Ng4 {[%clk 0:03:00]} 11. Nxc4 {[%clk 0:02:56]}  Be6 {[%clk 0:03:00]} 12. b3 {[%clk 0:02:54]}  Bxc4 {[%clk 0:02:29]} 13. bxc4 {[%clk 0:02:53]}  Nxe5 {[%clk 0:02:29]} 14. Qxd8+ {[%clk 0:02:42]}  Rxd8 {[%clk 0:02:30]} 15. Nd2 {[%clk 0:02:42]}  Bb4 {[%clk 0:02:29]} 16. Bb2 {[%clk 0:02:30]}  Rxd2 {[%clk 0:02:20]} 17. Bxe5 {[%clk 0:02:29]}  f6 {[%clk 0:02:21]} 18. Bxc7 {[%clk 0:02:21]}  Kd7 {[%clk 0:02:10]} 19. Bb6 {[%clk 0:02:06]}  Ke6 {[%clk 0:01:49]} 20. a3 {[%clk 0:02:01]}  Be7 {[%clk 0:01:38]} 21. Rfd1 {[%clk 0:01:58]}  Rc2 {[%clk 0:01:33]} 22. Rdc1 {[%clk 0:01:56]}  Rd2 {[%clk 0:01:29]} 23. Rd1 {[%clk 0:01:53]}  Rc2 {[%clk 0:01:29]} 24. Rdc1 {[%clk 0:01:36]}  Rb2 {[%clk 0:01:23]} 25. Bd4 {[%clk 0:01:34]}  Rb3 {[%clk 0:01:22]} 26. Rcb1 {[%clk 0:01:27]}  Rhb8 {[%clk 0:01:20]} 27. Rxb3 {[%clk 0:01:28]}  Rxb3 {[%clk 0:01:21]} 28. a4 {[%clk 0:01:27]}  c5 {[%clk 0:01:20]} 29. Rd1 {[%clk 0:01:24]}  cxd4 {[%clk 0:01:20]} 30. exd4 {[%clk 0:01:25]}  Rc3 {[%clk 0:01:07]} 31. d5+ {[%clk 0:01:25]}  Kd6 {[%clk 0:00:52]} 32. Re1 {[%clk 0:01:21]}  Rxc4 {[%clk 0:00:45]} 33. Re6+ {[%clk 0:01:22]}  Kd7 {[%clk 0:00:46]} 34. Rxa6 {[%clk 0:01:22]}  Bc5 {[%clk 0:00:44]} 35. Rc6 {[%clk 0:01:15]}  Rc1+ {[%clk 0:00:32]} 36. Kg2 {[%clk 0:01:16]}  Ba3 {[%clk 0:00:32]} 37. Ra6 {[%clk 0:01:13]}  Rc2 {[%clk 0:00:26]} 38. Kh3 {[%clk 0:01:09]}  Bd6 {[%clk 0:00:23]} 39. f4 {[%clk 0:01:08]}  Rc5 {[%clk 0:00:22]} 40. Ra7+ {[%clk 0:01:06]}  Bc7 {[%clk 0:00:23]} 41. a5 {[%clk 0:01:06]}  Rxa5 {[%clk 0:00:21]} 42. Rb7 {[%clk 0:01:04]}  Rxd5 {[%clk 0:00:21]} 43. Kg4 {[%clk 0:01:05]}  Rc5 {[%clk 0:00:19]} 44. Rb3 {[%clk 0:01:05]}  Ke6 {[%clk 0:00:19]} 45. Re3+ {[%clk 0:01:04]}  Kf7 {[%clk 0:00:19]} 46. Rd3 {[%clk 0:01:04]}  Ke7 {[%clk 0:00:18]} 47. Re3+ {[%clk 0:01:04]}  Kd7 {[%clk 0:00:19]} 48. Rd3+ {[%clk 0:01:04]}  Bd6 {[%clk 0:00:19]} 49. h4 {[%clk 0:01:04]}  h5+ {[%clk 0:00:18]} 50. Kh3 {[%clk 0:01:04]}  Ke6 {[%clk 0:00:19]} 51. Re3+ {[%clk 0:01:05]}  Kf5 {[%clk 0:00:18]} 52. Rd3 {[%clk 0:01:05]}  Bc7 {[%clk 0:00:17]} 53. Re3 {[%clk 0:01:05]}  Ba5 {[%clk 0:00:16]} 54. Re7 {[%clk 0:01:05]}  g6 {[%clk 0:00:16]} 55. Ra7 {[%clk 0:01:04]}  Bd2 {[%clk 0:00:16]} 56. Rd7 {[%clk 0:01:04]}  Bxf4 {[%clk 0:00:09]} 57. gxf4 {[%clk 0:01:05]}  Rc3+ {[%clk 0:00:09]} 58. Kg2 {[%clk 0:01:04]}  Kxf4 {[%clk 0:00:10]} 59. Rd4+ {[%clk 0:01:04]}  Kf5 {[%clk 0:00:10]} 60. Ra4 {[%clk 0:01:05]}  Re3 {[%clk 0:00:09]} 61. Ra5+ {[%clk 0:01:05]}  Re5 {[%clk 0:00:09]} 62. Ra6 {[%clk 0:01:05]}  Re6 {[%clk 0:00:08]} 63. Ra5+ {[%clk 0:01:05]}  Kf4 {[%clk 0:00:08]} 64. Ra4+ {[%clk 0:01:05]}  Re4 {[%clk 0:00:08]} 65. Ra6 {[%clk 0:01:05]}  Kf5 {[%clk 0:00:08]} 66. Kg3 {[%clk 0:01:06]}  g5 {[%clk 0:00:07]} 67. Ra5+ {[%clk 0:01:04]}  Kg6 {[%clk 0:00:06]} 68. hxg5 {[%clk 0:01:05]}  fxg5 {[%clk 0:00:07]} 69. Ra6+ {[%clk 0:01:06]}  Kf5 {[%clk 0:00:07]} 70. Ra5+ {[%clk 0:01:06]}  Re5 {[%clk 0:00:07]} 71. Ra8 {[%clk 0:01:07]}  Re3+ {[%clk 0:00:06]} 72. Kf2 {[%clk 0:01:07]}  Rd3 {[%clk 0:00:05]} 73. Ra5+ {[%clk 0:01:03]}  Kf4 {[%clk 0:00:05]} 74. Ra4+ {[%clk 0:01:04]}  Ke5 {[%clk 0:00:05]} 75. Ra5+ {[%clk 0:01:05]}  Rd5 {[%clk 0:00:06]} 76. Ra8 {[%clk 0:01:05]}  Kf4 {[%clk 0:00:05]} 77. Ra4+ {[%clk 0:01:04]}  Kf5 {[%clk 0:00:05]} 78. Ra8 {[%clk 0:01:04]}  h4 {[%clk 0:00:05]} 79. Kf3 {[%clk 0:01:02]}  Rd3+ {[%clk 0:00:05]} 80. Ke2 {[%clk 0:01:02]}  Rc3 {[%clk 0:00:05]} 81. Kf2 {[%clk 0:01:02]}  Kg4 {[%clk 0:00:04]} 82. Ra4+ {[%clk 0:00:59]}  Kh5 {[%clk 0:00:05]} 83. Kg2 {[%clk 0:00:57]}  h3+ {[%clk 0:00:04]} 84. Kh2 {[%clk 0:00:57]}  g4 {[%clk 0:00:05]} 85. Ra8 {[%clk 0:00:56]}  Rc2+ {[%clk 0:00:05]} 86. Kg1 {[%clk 0:00:53]}  g3 {[%clk 0:00:05]} 87. Ra5+ {[%clk 0:00:52]}  Kg4 {[%clk 0:00:05]} 88. Ra4+ {[%clk 0:00:53]}  Kf5 {[%clk 0:00:05]} 89. Ra5+ {[%clk 0:00:53]}  Ke4 {[%clk 0:00:05]} 90. Ra4+ {[%clk 0:00:53]}  Kd3 {[%clk 0:00:05]} 91. Ra3+ {[%clk 0:00:53]}  Rc3 {[%clk 0:00:05]} 92. Rxc3+ {[%clk 0:00:52]}  Kxc3 {[%clk 0:00:06]} 0-1


[Site "https://www.chess.com"]

[Event "Titled Tuesday Blitz June 21 Late 2022"]
[White "Makarian, Rudik"]
[Black "Djabri,Massinas"]
[WhiteFideId "44105681"]
[BlackFideId "7905726"]
[WhiteElo "2795"]
[BlackElo "2452"]
[Result "1-0"]
[Round "01"]
[TimeControl "180+1"]
[Date "2022.06.22"]
[WhiteClock "0:02:18"]
[BlackClock "0:02:13"]

1. d3 {[%clk 0:03:00]}  d5 {[%clk 0:02:59]} 2. f4 {[%clk 0:02:59]}  Nf6 {[%clk 0:02:58]} 3. Nf3 {[%clk 0:02:59]}  c5 {[%clk 0:02:58]} 4. g3 {[%clk 0:02:58]}  g6 {[%clk 0:02:56]} 5. Bg2 {[%clk 0:02:59]}  Bg7 {[%clk 0:02:57]} 6. O-O {[%clk 0:03:00]}  O-O {[%clk 0:02:57]} 7. Ne5 {[%clk 0:03:01]}  Nc6 {[%clk 0:02:57]} 8. Nxc6 {[%clk 0:03:02]}  bxc6 {[%clk 0:02:58]} 9. c4 {[%clk 0:03:02]}  Rb8 {[%clk 0:02:56]} 10. Nc3 {[%clk 0:03:02]}  d4 {[%clk 0:02:50]} 11. Na4 {[%clk 0:03:00]}  Ng4 {[%clk 0:02:47]} 12. b3 {[%clk 0:02:47]}  Ne3 {[%clk 0:02:46]} 13. Bxe3 {[%clk 0:02:46]}  dxe3 {[%clk 0:02:47]} 14. Nxc5 {[%clk 0:02:46]}  Qd4 {[%clk 0:02:37]} 15. Ne4 {[%clk 0:02:41]}  Qxa1 {[%clk 0:02:36]} 16. Qxa1 {[%clk 0:02:42]}  Bxa1 {[%clk 0:02:36]} 17. Rxa1 {[%clk 0:02:43]}  a5 {[%clk 0:02:28]} 18. Nc3 {[%clk 0:02:43]}  Bd7 {[%clk 0:02:26]} 19. Rb1 {[%clk 0:02:39]}  c5 {[%clk 0:02:26]} 20. Nd1 {[%clk 0:02:36]}  a4 {[%clk 0:02:18]} 21. Nxe3 {[%clk 0:02:32]}  axb3 {[%clk 0:02:19]} 22. axb3 {[%clk 0:02:32]}  e6 {[%clk 0:02:19]} 23. Nf1 {[%clk 0:02:18]}  Rb4 {[%clk 0:02:18]} 24. Nd2 {[%clk 0:02:18]}  Rfb8 {[%clk 0:02:18]} 25. Ne4 {[%clk 0:02:18]}  Rxb3 {[%clk 0:02:13]} 26. Rxb3 {[%clk 0:02:19]}  Rxb3 {[%clk 0:02:14]} 27. Nf6+ {[%clk 0:02:17]}  Kg7 {[%clk 0:02:13]} 28. Nxd7 {[%clk 0:02:18]} 1-0


[Site "https://www.chess.com"]

[Event "Titled Tuesday Blitz June 21 Late 2022"]
[White "Manukyan, Sargis A."]
[Black "Kovacevic, Radmila"]
[WhiteFideId "13303970"]
[BlackFideId "933171"]
[WhiteElo "2187"]
[BlackElo "2115"]
[Result "1-0"]
[Round "01"]
[TimeControl "180+1"]
[Date "2022.06.22"]
[WhiteClock "0:00:18"]
[BlackClock "0:00:06"]

1. d4 {[%clk 0:03:00]}  e5 {[%clk 0:02:58]} 2. dxe5 {[%clk 0:02:59]}  Nc6 {[%clk 0:02:58]} 3. Nf3 {[%clk 0:02:59]}  Qe7 {[%clk 0:02:59]} 4. Nc3 {[%clk 0:02:44]}  Nxe5 {[%clk 0:02:59]} 5. Nd5 {[%clk 0:02:43]}  Nxf3+ {[%clk 0:02:59]} 6. gxf3 {[%clk 0:02:44]}  Qd8 {[%clk 0:02:59]} 7. Bf4 {[%clk 0:02:43]}  d6 {[%clk 0:03:00]} 8. e4 {[%clk 0:02:41]}  Be6 {[%clk 0:02:58]} 9. Bc4 {[%clk 0:02:37]}  c6 {[%clk 0:02:49]} 10. Ne3 {[%clk 0:02:36]}  Qa5+ {[%clk 0:02:48]} 11. c3 {[%clk 0:02:35]}  O-O-O {[%clk 0:02:45]} 12. b4 {[%clk 0:02:28]}  Qa3 {[%clk 0:02:20]} 13. Qb3 {[%clk 0:02:19]}  Qxb3 {[%clk 0:02:12]} 14. axb3 {[%clk 0:02:20]}  a6 {[%clk 0:02:02]} 15. O-O-O {[%clk 0:02:14]}  Be7 {[%clk 0:01:54]} 16. Rhg1 {[%clk 0:02:05]}  g6 {[%clk 0:01:50]} 17. Kc2 {[%clk 0:01:57]}  h5 {[%clk 0:01:39]} 18. Rd2 {[%clk 0:01:43]}  Nf6 {[%clk 0:01:29]} 19. Rgd1 {[%clk 0:01:39]}  Ne8 {[%clk 0:01:20]} 20. Rg1 {[%clk 0:01:36]}  Rg8 {[%clk 0:01:18]} 21. Bxe6+ {[%clk 0:01:22]}  fxe6 {[%clk 0:01:19]} 22. Nc4 {[%clk 0:01:23]}  b5 {[%clk 0:01:07]} 23. Na5 {[%clk 0:01:16]}  Kc7 {[%clk 0:01:06]} 24. e5 {[%clk 0:01:15]}  d5 {[%clk 0:01:04]} 25. Be3 {[%clk 0:01:15]}  g5 {[%clk 0:00:53]} 26. f4 {[%clk 0:01:11]}  g4 {[%clk 0:00:51]} 27. f3 {[%clk 0:01:11]}  Ng7 {[%clk 0:00:49]} 28. fxg4 {[%clk 0:01:11]}  hxg4 {[%clk 0:00:50]} 29. Rxg4 {[%clk 0:01:10]}  Nf5 {[%clk 0:00:50]} 30. Rxg8 {[%clk 0:01:06]}  Rxg8 {[%clk 0:00:46]} 31. Kd3 {[%clk 0:01:07]}  Rh8 {[%clk 0:00:45]} 32. Bc5 {[%clk 0:00:58]}  Rh3+ {[%clk 0:00:45]} 33. Kc2 {[%clk 0:00:57]}  Bd8 {[%clk 0:00:38]} 34. Kb2 {[%clk 0:00:55]}  Rh4 {[%clk 0:00:20]} 35. Rf2 {[%clk 0:00:50]}  Rg4 {[%clk 0:00:18]} 36. Bd4 {[%clk 0:00:44]}  Bh4 {[%clk 0:00:18]} 37. h3 {[%clk 0:00:35]}  Rg1 {[%clk 0:00:16]} 38. Rh2 {[%clk 0:00:30]}  Rf1 {[%clk 0:00:14]} 39. Rg2 {[%clk 0:00:30]}  Rxf4 {[%clk 0:00:11]} 40. Rg4 {[%clk 0:00:29]}  Rxg4 {[%clk 0:00:09]} 41. hxg4 {[%clk 0:00:29]}  Nxd4 {[%clk 0:00:09]} 42. cxd4 {[%clk 0:00:30]}  Bf2 {[%clk 0:00:10]} 43. Kc3 {[%clk 0:00:30]}  Be1+ {[%clk 0:00:10]} 44. Kd3 {[%clk 0:00:27]}  Bxb4 {[%clk 0:00:11]} 45. g5 {[%clk 0:00:25]}  Bxa5 {[%clk 0:00:11]} 46. g6 {[%clk 0:00:25]}  Kd7 {[%clk 0:00:10]} 47. g7 {[%clk 0:00:25]}  c5 {[%clk 0:00:09]} 48. dxc5 {[%clk 0:00:23]}  Bc7 {[%clk 0:00:07]} 49. g8=Q {[%clk 0:00:23]}  Bxe5 {[%clk 0:00:08]} 50. b4 {[%clk 0:00:21]}  a5 {[%clk 0:00:07]} 51. bxa5 {[%clk 0:00:20]}  b4 {[%clk 0:00:07]} 52. a6 {[%clk 0:00:20]}  b3 {[%clk 0:00:07]} 53. a7 {[%clk 0:00:20]}  b2 {[%clk 0:00:07]} 54. Qf7+ {[%clk 0:00:18]}  Kc6 {[%clk 0:00:06]} 55. a8=Q+ {[%clk 0:00:18]}  Kxc5 {[%clk 0:00:06]} 56. Qaa7+ {[%clk 0:00:18]}  Kb4 {[%clk 0:00:06]} 57. Qfb7# {[%clk 0:00:18]} 1-0


[Site "https://www.chess.com"]

[Event "Titled Tuesday Blitz June 21 Late 2022"]
[White "Martinez Alcantara, Jose Eduardo"]
[Black "Taboas Rodriguez, Daniel"]
[WhiteFideId "3805662"]
[BlackFideId "2208466"]
[WhiteElo "2703"]
[BlackElo "2429"]
[Result "1-0"]
[Round "01"]
[TimeControl "180+1"]
[Date "2022.06.21"]
[WhiteClock "0:00:24"]
[BlackClock "0:00:05"]

1. e4 {[%clk 0:03:00]}  e6 {[%clk 0:02:59]} 2. d4 {[%clk 0:02:59]}  d5 {[%clk 0:03:00]} 3. Nc3 {[%clk 0:03:00]}  Nc6 {[%clk 0:03:00]} 4. Nf3 {[%clk 0:02:59]}  Nf6 {[%clk 0:03:00]} 5. e5 {[%clk 0:02:51]}  Ne4 {[%clk 0:03:00]} 6. Bd3 {[%clk 0:02:42]}  Bb4 {[%clk 0:03:00]} 7. Bd2 {[%clk 0:02:43]}  Nxd2 {[%clk 0:03:00]} 8. Qxd2 {[%clk 0:02:44]}  Be7 {[%clk 0:03:01]} 9. Ne2 {[%clk 0:02:41]}  Nb4 {[%clk 0:03:01]} 10. O-O {[%clk 0:02:40]}  O-O {[%clk 0:02:59]} 11. Ng3 {[%clk 0:02:40]}  Nxd3 {[%clk 0:02:58]} 12. cxd3 {[%clk 0:02:40]}  b6 {[%clk 0:02:58]} 13. Qf4 {[%clk 0:02:39]}  c5 {[%clk 0:02:57]} 14. Nh5 {[%clk 0:02:38]}  Ba6 {[%clk 0:02:55]} 15. Rfd1 {[%clk 0:02:38]}  Rc8 {[%clk 0:02:54]} 16. Qg4 {[%clk 0:02:24]}  g6 {[%clk 0:02:52]} 17. Nf4 {[%clk 0:02:25]}  cxd4 {[%clk 0:02:48]} 18. Nxd4 {[%clk 0:02:24]}  Kh8 {[%clk 0:02:17]} 19. Rac1 {[%clk 0:02:12]}  Qd7 {[%clk 0:02:16]} 20. b3 {[%clk 0:02:01]}  Rxc1 {[%clk 0:02:14]} 21. Rxc1 {[%clk 0:02:02]}  Rc8 {[%clk 0:02:14]} 22. Rd1 {[%clk 0:02:02]}  Qd8 {[%clk 0:02:03]} 23. g3 {[%clk 0:01:58]}  Ba3 {[%clk 0:01:52]} 24. h4 {[%clk 0:01:55]}  Rc1 {[%clk 0:01:51]} 25. Rxc1 {[%clk 0:01:44]}  Bxc1 {[%clk 0:01:52]} 26. Qf3 {[%clk 0:01:45]}  Kg8 {[%clk 0:01:29]} 27. Nfe2 {[%clk 0:01:15]}  Bb2 {[%clk 0:01:24]} 28. Qe3 {[%clk 0:01:14]}  h5 {[%clk 0:01:13]} 29. Kg2 {[%clk 0:01:14]}  Bb7 {[%clk 0:01:09]} 30. f3 {[%clk 0:01:13]}  Qe7 {[%clk 0:01:02]} 31. Qd2 {[%clk 0:01:09]}  Ba3 {[%clk 0:01:01]} 32. Qf4 {[%clk 0:01:07]}  Bc5 {[%clk 0:01:01]} 33. Qe3 {[%clk 0:00:56]}  a5 {[%clk 0:01:00]} 34. a4 {[%clk 0:00:56]}  Ba6 {[%clk 0:01:00]} 35. Kh3 {[%clk 0:00:57]}  Kh7 {[%clk 0:00:56]} 36. g4 {[%clk 0:00:56]}  hxg4+ {[%clk 0:00:49]} 37. fxg4 {[%clk 0:00:57]}  Qf8 {[%clk 0:00:38]} 38. Qg3 {[%clk 0:00:48]}  Qh6 {[%clk 0:00:35]} 39. g5 {[%clk 0:00:47]}  Qh5 {[%clk 0:00:30]} 40. Qf4 {[%clk 0:00:38]}  Kg8 {[%clk 0:00:27]} 41. Qd2 {[%clk 0:00:33]}  Qh8 {[%clk 0:00:20]} 42. Nf3 {[%clk 0:00:31]}  Qh5 {[%clk 0:00:19]} 43. Kg3 {[%clk 0:00:30]}  d4 {[%clk 0:00:16]} 44. Nf4 {[%clk 0:00:27]}  Qh8 {[%clk 0:00:16]} 45. Qe2 {[%clk 0:00:28]}  Bb7 {[%clk 0:00:16]} 46. Nh2 {[%clk 0:00:28]}  Qg7 {[%clk 0:00:15]} 47. Ng4 {[%clk 0:00:29]}  Qf8 {[%clk 0:00:15]} 48. Nf6+ {[%clk 0:00:30]}  Kh8 {[%clk 0:00:15]} 49. h5 {[%clk 0:00:31]}  Kg7 {[%clk 0:00:06]} 50. hxg6 {[%clk 0:00:24]}  fxg6 {[%clk 0:00:05]} 51. Nxe6+ {[%clk 0:00:24]} 1-0


[Site "https://www.chess.com"]

[Event "Titled Tuesday Blitz June 21 Late 2022"]
[White "Melikyan, Gnel"]
[Black "Prydun, Andriy"]
[WhiteFideId "54109990"]
[BlackFideId "14145898"]
[WhiteElo "1772"]
[BlackElo "2063"]
[Result "0-1"]
[Round "01"]
[TimeControl "180+1"]
[Date "2022.06.22"]
[WhiteClock "0:00:17"]
[BlackClock "0:00:49"]

1. e4 {[%clk 0:02:57]}  e6 {[%clk 0:03:00]} 2. d4 {[%clk 0:02:56]}  d5 {[%clk 0:03:00]} 3. e5 {[%clk 0:02:57]}  c5 {[%clk 0:03:00]} 4. c3 {[%clk 0:02:58]}  Nc6 {[%clk 0:03:00]} 5. Nf3 {[%clk 0:02:56]}  Qb6 {[%clk 0:02:58]} 6. a3 {[%clk 0:02:56]}  cxd4 {[%clk 0:02:50]} 7. cxd4 {[%clk 0:02:56]}  Nge7 {[%clk 0:02:51]} 8. b4 {[%clk 0:02:55]}  Nf5 {[%clk 0:02:49]} 9. Bb2 {[%clk 0:02:55]}  Bd7 {[%clk 0:02:42]} 10. g4 {[%clk 0:02:39]}  Nfe7 {[%clk 0:02:39]} 11. Nc3 {[%clk 0:02:38]}  Na5 {[%clk 0:02:35]} 12. Na4 {[%clk 0:02:31]}  Qc6 {[%clk 0:02:33]} 13. bxa5 {[%clk 0:01:50]}  Qxa4 {[%clk 0:02:33]} 14. Qxa4 {[%clk 0:01:51]}  Bxa4 {[%clk 0:02:33]} 15. Rc1 {[%clk 0:01:46]}  Nc6 {[%clk 0:02:25]} 16. a6 {[%clk 0:01:46]}  bxa6 {[%clk 0:02:25]} 17. Bxa6 {[%clk 0:01:29]}  Rb8 {[%clk 0:02:24]} 18. Bc3 {[%clk 0:01:30]}  Bxa3 {[%clk 0:02:18]} 19. Ra1 {[%clk 0:01:30]}  Bb4 {[%clk 0:02:19]} 20. Bxb4 {[%clk 0:01:18]}  Rxb4 {[%clk 0:02:19]} 21. O-O {[%clk 0:01:18]}  O-O {[%clk 0:01:55]} 22. Rfb1 {[%clk 0:01:06]}  Rfb8 {[%clk 0:01:53]} 23. Rxb4 {[%clk 0:01:03]}  Rxb4 {[%clk 0:01:52]} 24. Rc1 {[%clk 0:00:56]}  Rb6 {[%clk 0:01:29]} 25. Bd3 {[%clk 0:00:51]}  a5 {[%clk 0:01:23]} 26. Bc2 {[%clk 0:00:25]}  Bxc2 {[%clk 0:01:06]} 27. Rxc2 {[%clk 0:00:26]}  a4 {[%clk 0:01:02]} 28. Ra2 {[%clk 0:00:25]}  Ra6 {[%clk 0:01:00]} 29. Kf1 {[%clk 0:00:23]}  a3 {[%clk 0:00:58]} 30. Ke2 {[%clk 0:00:20]}  Nb4 {[%clk 0:00:58]} 31. Ra1 {[%clk 0:00:20]}  a2 {[%clk 0:00:56]} 32. Kd2 {[%clk 0:00:20]}  Rc6 {[%clk 0:00:54]} 33. Ne1 {[%clk 0:00:21]}  Rc4 {[%clk 0:00:53]} 34. Ke3 {[%clk 0:00:20]}  Rc2 {[%clk 0:00:49]} 35. Nd3 {[%clk 0:00:17]}  Rc3 {[%clk 0:00:49]} 0-1


[Site "https://www.chess.com"]